Cogmind - Beta 12 @@@ ROGUE MODE // 2023.04.04 @ 17:21:34 Player: Mr Goldstein Result: Destroyed by G-73 Enforcer with Phase Gun Performance ------------- Evolutions (9) 4500 Regions Visited (21) 4200 Robots Destroyed (248) 1240 Value Destroyed (9929) 9929 Prototype IDs (21) 420 Alien Tech Used (0) 0 Bonus (2921) 2921 TOTAL SCORE: 23210 Bonus ------- High Alert Combat Kills 1808 Follower Combat Kills 241 Entered Garrisons 200 Used RIF Installer 500 Aligned with FarCom 300 Met Data Miner 300 Friendly Fire -428 Cogmind --------- Core Integrity 0/1600 Matter 263/300 Energy 98/100 System Corruption 1% Temperature Cool (9) Movement Core (50) Location -1/Access Parts ------- > --- POWER (3) -------- (None) > --- PROPULSION (7) --- (None) > --- UTILITY (12) ----- Enhanced Optical Array Improved Targeting Computer > --- WEAPON (3) ------- (None) > --- INVENTORY (5) ---- Wheel Advanced Datajack Peak State ------------ > --- POWER ------------ Light Quantum Reactor Light Quantum Reactor > --- PROPULSION ------- Myomer Leg Myomer Leg Myomer Leg Advanced VSS Leg Advanced VSS Leg Advanced VSS Leg > --- UTILITY ---------- Advanced Heat Sink Advanced Heat Sink Weight Redist. System Enhanced Optical Array Enhanced Optical Array Advanced Signal Interpreter Advanced Terrain Scan Processor Improved Targeting Computer Improved Target Analyzer Graphene Brace > --- WEAPON ----------- Phase Gun Quantum Rifle Quantum Rifle > --- INVENTORY -------- Wheel Wheel Phase Gun Advanced Datajack [Rating: 129] Favorites ----------- Power Deuterium Engine Engine Deuterium Engine Power Core Light Nuclear Core Reactor Antimatter Reactor Propulsion Improved Carbon-fiber Leg Treads Improved Heavy Treads Leg Improved Carbon-fiber Leg Wheel Compact Wheel Hover Unit Improved Linear Gravjet Flight Unit Impulse Thruster Array Utility High-capacity Storage Unit Device Advanced Heat Sink Storage High-capacity Storage Unit Processor Advanced Terrain Scan Processor Hackware Relay Coupler [Grunt] Protection Improved Medium Armor Plating Weapon Phase Gun Energy Gun Phase Gun Energy Cannon HERF Cannon Ballistic Gun Light Assault Rifle Launcher Micro-nuke Launcher Special Weapon Mining Laser Slashing Weapon Longsword +1 Special Melee Weapon Advanced Datajack Build | -11 -10 -10 -10 -9 -8 -7 -7 -6 -6 -6 -6 -5 -5 -4 -4 -4 -4 -3 -3 -2 -1 ------- Run | Jun Mat Min Exi Min Mat Fac Gar Fac Low Low Dat Pro Fac Fac Upp Upp War Pro Res Res Acc Slots Evolved 18 | . . . . . 4 2 . 2 . . . . 2 2 . . . . 2 2 2 Power 2 | . . . . . . . . 1 . . . . . . . . . . . 1 . Propulsion 5 | . . . . . 2 . . . . . . . 1 . . . . . 1 1 . Utility 10 | . . . . . 2 2 . 1 . . . . 1 2 . . . . . . 2 Weapon 1 | . . . . . . . . . . . . . . . . . . . 1 . . Parts Attached 275 | 6 12 14 3 2 13 3 50 10 1 11 1 11 51 21 5 4 . 12 16 17 12 Power 27 | 1 1 . . . 2 1 4 2 . 1 . 1 6 2 1 . . 1 . 3 1 Engine 11 | 1 1 . . . . 1 4 1 . . . . 3 . . . . . . . . Core 10 | . . . . . 2 . . 1 . 1 . . 3 2 1 . . . . . . Reactor 6 | . . . . . . . . . . . . 1 . . . . . 1 . 3 1 Propulsion 74 | 2 2 2 . . 5 . 9 . 1 1 . 2 19 11 . . . . 9 5 6 Treads 9 | . . . . . . . 4 . . . . . 3 . . . . . 2 . . Leg 27 | . . . . . . . 4 . 1 1 . 2 10 3 . . . . 3 3 . Wheel 30 | 2 2 2 . . 5 . . . . . . . 6 8 . . . . 4 1 . Hover 7 | . . . . . . . 1 . . . . . . . . . . . . . 6 Flight 1 | . . . . . . . . . . . . . . . . . . . . 1 . Utility 67 | 1 3 3 . . 5 2 14 5 . 3 . 1 10 4 2 . . 5 4 4 1 Device 43 | . 2 3 . . 5 2 6 3 . 1 . 1 7 2 2 . . 3 3 2 1 Storage 7 | 1 1 . . . . . 4 . . . . . 1 . . . . . . . . Processor 10 | . . . . . . . 1 1 . 2 . . 1 1 . . . 2 1 1 . Hackware 4 | . . . . . . . 3 1 . . . . . . . . . . . . . Protection 3 | . . . . . . . . . . . . . 1 1 . . . . . 1 . Artifact . | . . . . . . . . . . . . . . . . . . . . . . Weapon 107 | 2 6 9 3 2 1 . 23 3 . 6 1 7 16 4 2 4 . 6 3 5 4 Energy Gun 45 | . . 1 . 1 . . 6 1 . 4 . 4 9 3 1 3 . 3 1 4 4 Energy Cannon 10 | . . . 1 . 1 . 3 1 . 1 . 1 2 . . . . . . . . Ballistic Gun 14 | 2 3 4 1 1 . . . . . . . . 2 . . . . . . 1 . Ballistic Cannon . | . . . . . . . . . . . . . . . . . . . . . . Launcher 28 | . 3 3 . . . . 7 1 . 1 1 2 2 1 1 1 . 3 2 . . Special Weapon 2 | . . 1 . . . . 1 . . . . . . . . . . . . . . Impact Weapon . | . . . . . . . . . . . . . . . . . . . . . . Slashing Weapon 6 | . . . 1 . . . 5 . . . . . . . . . . . . . . Piercing Weapon . | . . . . . . . . . . . . . . . . . . . . . . Special Melee Weapon 2 | . . . . . . . 1 . . . . . 1 . . . . . . . . Unidentified Prototypes 6 | . . 1 2 . . . . . . . . 2 1 . . . . . . . . Corrupted Parts 3 | . . . . . . . . . . . . 3 . . . . . . . . . System Corruption 13 | . . . . . . . . . . . . 13 . . . . . . . . . Parts Lost 128 | . 2 1 . . 7 . 26 . . 4 . 1 31 6 . . 3 6 11 18 12 Power 20 | . . . . . 2 . 2 . . . . 1 8 . . . 1 1 1 3 1 Propulsion 51 | . 1 1 . . 4 . 8 . . 1 . . 11 4 . . 2 1 5 7 6 Utility 38 | . 1 . . . 1 . 9 . . 2 . . 8 2 . . . 4 3 6 2 Weapon 19 | . . . . . . . 7 . . 1 . . 4 . . . . . 2 2 3 Highest Loss Streak 14 | . 2 1 . . 3 . 9 . . 3 . 1 14 4 . . 3 2 4 9 11 To Critical Strikes . | . . . . . . . . . . . . . . . . . . . . . . Average Slot Usage (%) 90 | . 92 97 96 100 85 84 84 98 100 98 100 99 93 75 99 100 97 77 73 59 35 Engine 6 | . 14 14 14 14 1 6 6 6 13 10 6 6 4 . . . . . . . . Core 2 | . . . . . 7 . . 5 . 2 6 4 1 1 10 10 9 3 . . . Treads 1 | . . . . . . . 4 . . . . . . . . . . . 7 . . Leg 14 | . . . . . . . 10 26 26 25 26 26 23 13 10 10 9 4 . 12 . Wheel 6 | . 27 25 28 28 31 23 . . . . . . . 7 15 15 14 10 4 . . Device 20 | . 7 14 14 14 26 38 18 26 26 23 20 20 18 16 25 26 26 26 17 9 1 Storage 9 | . 14 14 14 14 9 7 20 6 6 6 6 6 7 5 5 5 5 5 2 . . Processor 8 | . . . . . . . 3 2 6 7 13 13 13 17 15 15 15 15 23 21 11 Hackware 2 | . . . . . . . . 10 6 6 6 6 1 . . . . . . . . Energy Gun 6 | . . . . 14 . . 4 . 6 7 13 11 8 8 7 9 10 5 11 7 1 Energy Cannon 1 | . . . 3 . 9 7 4 . . . . . 1 1 . . . . . . . Ballistic Gun 1 | . 27 16 17 14 . . . . . . . . . . . . . . . . . Launcher 1 | . . 10 3 . . . 1 . 6 3 . 1 . . 2 . . 4 . . . Naked Turns . | . . . . . . . . . . . . . . . . . . . . . . Heaviest Build 96 | 13 50 50 68 51 71 77 87 91 91 92 85 85 96 67 75 75 73 79 77 65 26 Greatest Support 146 | 32 32 26 26 26 58 42 117 69 74 74 71 79 99 85 54 54 54 38 146 135 84 Greatest Overweight (x) 23 | . 2 4 2 1 2 1 23 1 1 1 1 1 4 4 1 1 1 2 3 . . Average Overweight (x) . | . . 1 1 1 1 1 . . 1 1 1 . . 1 1 1 1 1 1 . . Largest Inventory Capacity 20 | 8 20 20 20 20 20 20 20 20 20 20 20 20 20 20 20 20 20 20 20 5 5 Average Capacity 18 | 6 10 20 20 20 20 20 20 20 20 20 20 20 20 20 20 20 20 20 13 5 5 Most Carried 20 | 4 15 20 20 20 20 20 20 20 20 20 18 20 20 20 20 20 20 20 20 5 5 Average Carried 17 | 2 7 19 19 19 16 19 18 19 19 19 18 18 17 19 20 19 20 19 12 4 4 Final Capacity 20 | 8 20 20 20 20 20 20 20 20 20 20 20 20 20 20 20 20 20 20 5 5 5 Final Carried 20 | 3 15 20 20 20 19 20 20 19 20 18 18 19 20 20 20 20 20 19 4 5 2 Class Distribution -------------------- 64% | Scavenger-Mutant 17% | Mutant 15% | Scavenger-Skirmisher Dominant Class ---------------- Mutant | -10/Materials Scavenger-Mutant | -10/Mines Scavenger-Mutant | -10/Exiles Scavenger-Mutant | -9/Mines Scavenger-Mutant | -8/Materials Scavenger-Mutant | -7/Factory Mutant | -7/Garrison Scavenger-Mutant | -6/Factory Scavenger-Mutant | -6/Lower Caves Scavenger-Mutant | -6/Lower Caves Scavenger-Skirmisher | -6/Data Miner Scavenger-Skirmisher | -5/Proximity Caves Scavenger-Mutant | -5/Factory Scavenger-Mutant | -4/Factory Scavenger-Mutant | -4/Upper Caves Scavenger-Mutant | -4/Upper Caves Scavenger-Skirmisher | -4/Warlord Scavenger-Mutant | -3/Proximity Caves Scavenger-Gunner | -3/Research Mutant | -2/Research Mutant | -1/Access Resources | -11 -10 -10 -10 -9 -8 -7 -7 -6 -6 -6 -6 -5 -5 -4 -4 -4 -4 -3 -3 -2 -1 ----------- Run | Jun Mat Min Exi Min Mat Fac Gar Fac Low Low Dat Pro Fac Fac Upp Upp War Pro Res Res Acc Matter Collected 4415 | 198 341 344 . 22 153 30 957 39 158 241 . 176 569 197 100 65 . 198 232 395 . Remotely 37 | . 37 . . . . . . . . . . . . . . . . . . . . Salvage Created 9484 | . 359 160 . . 2857 . 1432 44 29 317 . 286 2262 347 45 . . 396 361 554 35 Parts 400 | . 30 8 . . 92 . 68 2 3 13 . 6 88 15 5 . . 22 18 28 2 Haulers Intercepted 4 | . . . . . 3 . . . . . . . 1 . . . . . . . . Recyclers Shooed 10 | . 1 . . . . . . . . . . . 4 4 . . . . . 1 . Parts Field Recycled . | . . . . . . . . . . . . . . . . . . . . . . Retrieved Matter . | . . . . . . . . . . . . . . . . . . . . . . Parts Self-Destructed 29 | . . . . . . . . . 4 1 . 7 . . 2 . . 15 . . . Prevented . | . . . . . . . . . . . . . . . . . . . . . . Kills | -11 -10 -10 -10 -9 -8 -7 -7 -6 -6 -6 -6 -5 -5 -4 -4 -4 -4 -3 -3 -2 -1 ------- Run | Jun Mat Min Exi Min Mat Fac Gar Fac Low Low Dat Pro Fac Fac Upp Upp War Pro Res Res Acc Combat Hostiles Destroyed 191 | . 10 7 . . 40 . 43 2 3 8 . 7 32 4 4 . . 14 9 7 1 Melee 6 | . . . . . . . 6 . . . . . . . . . . . . . . Guns 56 | . 6 5 . . . . 11 2 . . . 2 16 2 1 . . 2 2 6 1 Cannons 17 | . . . . . 7 . 5 . . 1 . . 4 . . . . . . . . AOE 94 | . 4 2 . . 26 . 19 . 3 7 . 4 6 1 3 . . 12 7 . . Classes Destroyed 19 | . 6 1 . . 9 . 1 . . 2 . . . . . . . . . . . Worker 17 | . 1 . . . 12 . . . . . . . 2 . . . . . 1 1 . Builder 12 | . . . . . 7 . . . . . . . 2 . . . . . 3 . . Tunneler 4 | . 1 . . . 1 . . . . . . . 2 . . . . . . . . Hauler 4 | . . . . . 3 . . . . . . . 1 . . . . . . . . Recycler 11 | . 1 . . . 3 . . . . . . . 5 1 . . . . 1 . . Operator 2 | . . . . . 1 . . . . . . . 1 . . . . . . . . Watcher 9 | . 2 . . . 5 . 1 . . . . . 1 . . . . . . . . Swarmer 68 | . 6 2 . . 6 . 20 2 3 . . . 13 . 4 . . 8 3 . 1 Grunt 61 | . 4 4 . . 24 . 12 . . . . 6 5 . . . . 4 . 2 . Brawler 3 | . . . . . 1 . 2 . . . . . . . . . . . . . . Duelist 3 | . . . . . 1 . 2 . . . . . . . . . . . . . . Protector 1 | . . . . . 1 . . . . . . . . . . . . . . . . Sentry 10 | . . . . . 2 . 2 . . . . . 2 2 . . . . 1 1 . Specialist 10 | . . . . . 2 . 4 . . . . . 4 . . . . . . . . Hunter 7 | . . . . . 3 . . . . . . . 2 . . . . . 2 . . Programmer 19 | . . . . . . . 1 . . . . 1 6 2 . . . 2 3 4 . Master Thief 2 | . . . . . . . . . . 2 . . . . . . . . . . . Assembled 1 | . . 1 . . . . . . . . . . . . . . . . . . . Thug 2 | . . . . . . . . . . 2 . . . . . . . . . . . Savage 1 | . . . . . . . . . . 1 . . . . . . . . . . . Butcher 4 | . . . . . . . . . . 4 . . . . . . . . . . . Mutant 1 | . . . . . . . . . . 1 . . . . . . . . . . . Best Kill Streak 10 | . 7 2 . . 10 . 9 2 3 5 . 4 6 1 4 . . 5 10 4 1 Combat Bots Only 9 | . 6 2 . . 6 . 9 2 3 5 . 4 5 1 4 . . 5 6 4 1 Max Kills in Single Turn 7 | . 3 2 . . 3 . 7 1 2 3 . 3 5 1 4 . . 5 2 1 1 Gunslinging . | . . . . . . . . . . . . . . . . . . . . . . Exploded 7 | . 2 2 . . 3 . 7 . 2 1 . 3 4 1 3 . . 5 2 . . Melee 1 | . . . . . . . 1 . . . . . . . . . . . . . . Uniques/NPCs Destroyed . | . . . . . . . . . . . . . . . . . . . . . . Combat | -11 -10 -10 -10 -9 -8 -7 -7 -6 -6 -6 -6 -5 -5 -4 -4 -4 -4 -3 -3 -2 -1 -------- Run | Jun Mat Min Exi Min Mat Fac Gar Fac Low Low Dat Pro Fac Fac Upp Upp War Pro Res Res Acc Damage Taken 18937 | . 414 182 . . 931 . 3474 91 27 189 . 328 3333 706 105 . 354 565 2071 2998 3169 Core 5010 | . 87 32 . . 256 . 579 . . 90 . 58 574 181 38 . . 137 142 1229 1607 Absorbed by Shields 164 | . . . . . . . 55 34 28 47 . . . . . . . . . . . Core Remaining (%) 57 | 100 . . . 52 53 . 17 . . . . 82 42 . . . . 69 89 15 . Volleys Fired 490 | . 37 17 . . 59 . 115 8 2 17 . 16 124 27 1 . . 11 27 20 9 Largest 3 | . 2 2 . . 1 . 2 1 2 2 . 2 2 2 2 . . 2 3 3 2 Hottest 282 | . 50 165 . . 250 . 250 110 134 154 . 150 175 176 131 . . 188 282 282 182 Shots Fired 824 | . 72 32 . . 59 . 178 8 4 27 . 30 226 50 4 3 . 14 47 56 14 Gun 608 | . 70 26 . . . . 109 6 2 13 . 27 194 46 3 2 . 7 33 56 14 Cannon 133 | . . . . . 59 . 36 2 . 3 . . 30 3 . . . . . . . Launcher 67 | . 2 4 . . . . 19 . 2 11 . 3 2 1 1 1 . 7 14 . . Special 16 | . . 2 . . . . 14 . . . . . . . . . . . . . . Kinetic 117 | . 70 24 . . . . . . . . . . 20 . . . . . . 3 . Thermal 604 | . . 4 . . 59 . 128 6 2 13 . 27 204 49 3 2 . 7 33 53 14 Explosive 67 | . 2 4 . . . . 19 . 2 11 . 3 2 1 1 1 . 7 14 . . Electromagnetic 36 | . . . . . . . 31 2 . 3 . . . . . . . . . . . Robot Hit Streak 27 | . 7 11 . . 8 . 16 7 1 4 . 16 27 12 1 . . 11 22 13 4 Robot Miss Streak 6 | . 4 2 . . 6 . 3 3 3 5 . 1 5 2 . . . 1 3 2 5 Penetration Max . | . . . . . . . . . . . . . . . . . . . . . . Secondary Targets 2 | . . . . . . . . . . . . . 2 . . . . . . . . Max Gunslinging Chain 1 | . . . . . . . . . . . . . 1 . . . . . . . . Shots Hit Robots 567 | . 35 16 . . 48 . 121 6 1 12 . 26 173 37 1 . . 12 31 43 5 Core Hits 427 | . 24 12 . . 127 . 66 2 2 22 . 14 71 10 4 . . 25 28 18 2 Critical Kills 4 | . . 1 . . . . 1 . . . . . 1 1 . . . . . . . Critical Parts Destroyed 3 | . . . . . . . 3 . . . . . . . . . . . . . . Critical Strikes 34 | . . 1 . . . . 7 1 . 1 . 4 18 2 . . . . . . . Burn 25 | . . . . . . . 1 1 . 1 . 4 17 1 . . . . . . . Meltdown 2 | . . . . . . . . . . . . . 1 1 . . . . . . . Destroy 5 | . . 1 . . . . 4 . . . . . . . . . . . . . . Sever 2 | . . . . . . . 2 . . . . . . . . . . . . . . Melee Attacks 76 | . . . . . . . 75 1 . . . . . . . . . . . . . Impact . | . . . . . . . . . . . . . . . . . . . . . . Slashing 72 | . . . . . . . 72 . . . . . . . . . . . . . . Piercing . | . . . . . . . . . . . . . . . . . . . . . . Sneak Attacks 4 | . . . . . . . 3 1 . . . . . . . . . . . . . Combat Hostiles . | . . . . . . . . . . . . . . . . . . . . . . Follow-up Attacks . | . . . . . . . . . . . . . . . . . . . . . . Damage Inflicted 26446 | . 620 283 . . 4308 . 5785 110 372 1407 . 1384 5025 1140 249 . . 1809 2454 1337 163 Guns 9344 | . 371 135 . . . . 1928 54 . 112 . 524 3019 860 26 . . 239 645 1300 131 Cannons 2815 | . . . . . 1009 . 703 56 . 72 . . 872 103 . . . . . . . Explosions 13227 | . 249 124 . . 3299 . 2205 . 372 1223 . 860 1134 177 223 . . 1570 1791 . . Melee 949 | . . . . . . . 949 . . . . . . . . . . . . . . Ramming 87 | . . . . . . . . . . . . . . . . . . . 18 37 32 Kinetic 775 | . 371 117 . . . . . . . . . . 235 . . . . . . 52 . Thermal 14442 | . . 42 . . 4308 . 2017 54 . 112 . 524 4053 1043 26 . . 239 645 1248 131 Explosive 9362 | . 249 124 . . . . 2116 . 372 1223 . 860 737 97 223 . . 1570 1791 . . Electromagnetic 831 | . . . . . . . 703 56 . 72 . . . . . . . . . . . Impact . | . . . . . . . . . . . . . . . . . . . . . . Slashing 949 | . . . . . . . 949 . . . . . . . . . . . . . . Piercing . | . . . . . . . . . . . . . . . . . . . . . . Highest Corruption 14 | . . . . . . . 14 . . . . 14 3 4 4 4 4 3 2 10 1 Average Corruption 6 | . . . . . . . 10 . . . . 1 2 3 4 4 4 2 1 7 1 Corruption Purged 9 | . . . . . . . . . . . . . 9 . . . . . . . . Corruption Blocked . | . . . . . . . . . . . . . . . . . . . . . . Effects 250 | . . . . . . . 132 . . . . 3 18 9 12 48 10 4 6 8 . Message Errors 58 | . . . . . . . 34 . . . . . 7 . 2 6 2 1 2 4 . Matter Fused 54 | . . . . . . . 29 . . . . 1 3 3 . 13 3 1 1 . . Heat Flow Errors 37 | . . . . . . . 20 . . . . 1 . 2 5 6 1 1 1 . . Energy Discharges 38 | . . . . . . . 21 . . . . . 1 1 1 9 2 1 1 1 . Parts Rejected 2 | . . . . . . . . . . . . . . 1 . . . . . 1 . Parts Fused 3 | . . . . . . . 1 . . . . . . . . 1 1 . . . . Data Loss (minor) 25 | . . . . . . . 10 . . . . . 3 1 2 5 1 . 1 2 . Data Loss (major) 9 | . . . . . . . 5 . . . . 1 1 . . 2 . . . . . Misfires 12 | . . . . . . . 5 . . . . . 2 . 2 3 . . . . . Alerts 6 | . . . . . . . 3 . . . . . . . . 3 . . . . . Weapon Failures 6 | . . . . . . . 4 . . . . . 1 1 . . . . . . . Overload Shots . | . . . . . . . . . . . . . . . . . . . . . . Overflow Damage 875 | . 4 39 . . 27 . 237 . 32 132 . 30 88 102 . . . 52 132 . . Projectiles 37 | . . . . . 1 . 31 . . . . . 1 4 . . . . . . . Explosions 803 | . 4 39 . . 26 . 171 . 32 132 . 30 87 98 . . . 52 132 . . Melee 35 | . . . . . . . 35 . . . . . . . . . . . . . . Knockbacks 2 | . . . . . . . . . . . . . . . . . . . . 1 1 Impact 2 | . . . . . . . . . . . . . . . . . . . . 1 1 Kinetic . | . . . . . . . . . . . . . . . . . . . . . . Secondary . | . . . . . . . . . . . . . . . . . . . . . . Self-Inflicted Damage 956 | . . 30 . . 183 . 221 . . 180 . . 75 133 40 . . . 63 17 14 Shots 44 | . . 2 . . 24 . 8 . . 3 . . 2 2 1 . . . 2 . . Rammed 17 | . . . . . . . . . . . . . . . . . . . 1 9 7 Targets Rammed 18 | . . . . . . . . . . . . . . . . . . . 2 9 7 Kicked 1 | . . . . . . . . . . . . . . . . . . . 1 . . Crushed . | . . . . . . . . . . . . . . . . . . . . . . Highest Temperature 620 | . 24 30 . . 476 . 490 . . . . 158 198 288 195 196 250 82 305 620 316 Average Temperature 111 | . 9 15 . . 136 . 96 . . . . 91 40 86 66 91 119 24 122 261 190 Received Heat Transfer 2074 | . 156 60 . . 243 . 874 . . 9 . 81 207 45 . . . 12 72 126 189 Effects 38 | . . . . . 5 . . . . . . . . . . . . . . 33 . Shutdowns 6 | . . . . . . . . . . . . . . . . . . . . 6 . Energy Bleed 1 | . . . . . . . . . . . . . . . . . . . . 1 . Interference 17 | . . . . . 5 . . . . . . . . . . . . . . 12 . Matter Decay 2 | . . . . . . . . . . . . . . . . . . . . 2 . Short Circuit 1 | . . . . . . . . . . . . . . . . . . . . 1 . Damage (minor) 2 | . . . . . . . . . . . . . . . . . . . . 2 . Damage (major) 8 | . . . . . . . . . . . . . . . . . . . . 8 . Damage (core) 1 | . . . . . . . . . . . . . . . . . . . . 1 . Siege Activations . | . . . . . . . . . . . . . . . . . . . . . . Robots Corrupted 1 | . . . . . . . 1 . . . . . . . . . . . . . . Combat Hostiles 1 | . . . . . . . 1 . . . . . . . . . . . . . . Parts Fried 4 | . . . . . . . 4 . . . . . . . . . . . . . . Impact Corruptions . | . . . . . . . . . . . . . . . . . . . . . . Robots Melted 19 | . . . . . 9 . 1 . . . . 1 6 1 . . . . . 1 . Combat Hostiles 17 | . . . . . 7 . 1 . . . . 1 6 1 . . . . . 1 . Parts Melted 130 | . . . . . 75 . 3 2 . . . 3 32 1 . . . . 5 9 . Heat Transferred 41182 | . . 87 . . 23552 . 3313 250 . 374 . 1184 8065 1508 37 . . 259 814 1554 185 Parts Sabotaged . | . . . . . . . . . . . . . . . . . . . . . . Parts Stolen 3 | . . . . . . . . . . 3 . . . . . . . . . . . Parts Stripped . | . . . . . . . . . . . . . . . . . . . . . . Power Chain Reactions . | . . . . . . . . . . . . . . . . . . . . . . Missiles Intercepted . | . . . . . . . . . . . . . . . . . . . . . . Alert | -11 -10 -10 -10 -9 -8 -7 -7 -6 -6 -6 -6 -5 -5 -4 -4 -4 -4 -3 -3 -2 -1 ------- Run | Jun Mat Min Exi Min Mat Fac Gar Fac Low Low Dat Pro Fac Fac Upp Upp War Pro Res Res Acc Peak Influence 3462 | . 330 283 . . 1409 604 3462 1862 . . . . 458 316 . . . . 300 312 353 Initial 1817 | . . 73 . . . 590 422 1817 . . . . . 199 . . . . 128 162 96 Average 915 | . 121 182 . . 761 590 1829 1808 . . . . 291 248 . . . . 197 189 173 Maximum Alert Level 5 | . 1 1 . . 4 2 5 5 . . . . 2 1 . . . . 1 1 1 Low Security (%) 21 | 100 73 36 . 100 15 . . . . . . . 21 15 . . . . 63 59 67 Level 1 27 | . 26 63 . . 5 . . . . . . . 65 84 . . . . 36 40 32 Level 2 7 | . . . . . 23 100 4 . . . . . 12 . . . . . . . . Level 3 11 | . . . . . 34 . 22 . . . . . . . . . . . . . . Level 4 9 | . . . . . 22 . 20 . . . . . . . . . . . . . . Level 5 22 | . . . . . . . 53 100 . . . . . . . . . . . . . High Security . | . . . . . . . . . . . . . . . . . . . . . . Max Security . | . . . . . . . . . . . . . . . . . . . . . . Squads Dispatched 35 | . 2 . . . 11 . . 1 . . . . 13 3 . . . . 2 2 1 Investigation 2 | . . . . . 2 . . . . . . . . . . . . . . . . Extermination 7 | . . . . . . . . . . . . . 3 2 . . . . 1 1 . Reinforcement 19 | . 2 . . . 7 . . . . . . . 6 1 . . . . 1 1 1 Assault 4 | . . . . . 2 . . 1 . . . . 1 . . . . . . . . Garrison 3 | . . . . . . . . . . . . . 3 . . . . . . . . Intercept . | . . . . . . . . . . . . . . . . . . . . . . Searches Triggered . | . . . . . . . . . . . . . . . . . . . . . . Data Miner Redirects 2 | . . . . . . . . . . . . . 2 . . . . . . . . Construction Impeded 5 | . . . . . 3 . . . . . . . . . . . . . 1 . 1 Haulers Reinforced 1 | . . . . . . . . . . . . . . 1 . . . . . . . Active Scanning Responses . | . . . . . . . . . . . . . . . . . . . . . . Cargo Convoy Interrupts 1 | . . . . . . . . . . . . . 1 . . . . . . . . Stealth | -11 -10 -10 -10 -9 -8 -7 -7 -6 -6 -6 -6 -5 -5 -4 -4 -4 -4 -3 -3 -2 -1 --------- Run | Jun Mat Min Exi Min Mat Fac Gar Fac Low Low Dat Pro Fac Fac Upp Upp War Pro Res Res Acc Distress Signals 12 | . 1 . . . 3 . . 1 . . . . 2 1 . . . . 1 2 1 Communications Jammed . | . . . . . . . . . . . . . . . . . . . . . . Distress Signals . | . . . . . . . . . . . . . . . . . . . . . . Times Spotted 311 | . 19 12 . . 46 . 51 5 3 10 . 10 50 6 4 . 2 15 19 24 35 Peak Tracking Total 20 | . 6 3 . . 6 . 8 4 3 3 . 4 7 3 . . 2 6 8 12 20 Tactical Retreats 26 | . 2 2 . . 6 . 2 . . . . . 1 . . . . . 2 5 6 Traps | -11 -10 -10 -10 -9 -8 -7 -7 -6 -6 -6 -6 -5 -5 -4 -4 -4 -4 -3 -3 -2 -1 ------- Run | Jun Mat Min Exi Min Mat Fac Gar Fac Low Low Dat Pro Fac Fac Upp Upp War Pro Res Res Acc Traps Triggered 14 | . 2 . . . 2 . 7 . . . . . . . . . 2 . 1 . . Indirectly . | . . . . . . . . . . . . . . . . . . . . . . Trap Hack Attempts 24 | . . . . . . . 23 . . . . . 1 . . . . . . . . Triggered . | . . . . . . . . . . . . . . . . . . . . . . Disarmed 1 | . . . . . . . 1 . . . . . . . . . . . . . . Reprogrammed 7 | . . . . . . . 1 . . . . . 1 5 . . . . . . . Reused 4 | . . . . . . . . . . . . . . 4 . . . . . . . Traps Extracted . | . . . . . . . . . . . . . . . . . . . . . . Installed . | . . . . . . . . . . . . . . . . . . . . . . Triggered 6 | . . . . . . . . . . . . . 2 4 . . . . . . . Machines | -11 -10 -10 -10 -9 -8 -7 -7 -6 -6 -6 -6 -5 -5 -4 -4 -4 -4 -3 -3 -2 -1 ---------- Run | Jun Mat Min Exi Min Mat Fac Gar Fac Low Low Dat Pro Fac Fac Upp Upp War Pro Res Res Acc Machines Disabled 37 | . . 1 . . 9 . 10 . . . . . 9 8 . . . . . . . Max in Single Turn 8 | . . 1 . . 3 . 1 . . . . . 5 8 . . . . . . . Garrison Access 4 | . . . . . 1 . . . . . . . 1 . . . . . 1 . 1 Garrison Relay 3 | . . . . . . . 3 . . . . . . . . . . . . . . Machines Repaired . | . . . . . . . . . . . . . . . . . . . . . . Machines Sabotaged . | . . . . . . . . . . . . . . . . . . . . . . Overloaded Fab Kills . | . . . . . . . . . . . . . . . . . . . . . . Hacking | -11 -10 -10 -10 -9 -8 -7 -7 -6 -6 -6 -6 -5 -5 -4 -4 -4 -4 -3 -3 -2 -1 --------- Run | Jun Mat Min Exi Min Mat Fac Gar Fac Low Low Dat Pro Fac Fac Upp Upp War Pro Res Res Acc Machines Accessed 29 | . 4 1 . . 2 2 3 . 1 . 4 . 4 1 . 1 . . 2 2 2 Terminals 15 | . 3 . . . 1 . 3 . 1 . . . 3 1 . . . . 1 1 1 Fabricators 1 | . . . . . . . . . . . . . . . . . . . . 1 . Repair Stations 1 | . . . . . . 1 . . . . . . . . . . . . . . . Recycling Units 2 | . 1 . . . . . . . . . . . 1 . . . . . . . . Scanalyzers 1 | . . . . . 1 . . . . . . . . . . . . . . . . Garrison Access 3 | . . . . . . 1 . . . . . . . . . . . . 1 . 1 Total Hacks 78 | . 9 1 . . 3 3 5 . 2 . 30 . 10 1 . 1 . . 3 8 2 Successful 56 | . 7 1 . . 1 1 2 . 2 . 30 . 5 1 . 1 . . 1 2 2 Failed 22 | . 2 . . . 2 2 3 . . . . . 5 . . . . . 2 6 . Catastrophic 4 | . . . . . 1 . 2 . . . . . 1 . . . . . . . . Database Lockouts . | . . . . . . . . . . . . . . . . . . . . . . Manual 4 | . 1 . 1 . . . . . . . . . 2 . . . . . . . . Terminals 31 | . 8 . . . 2 . 5 . 2 . . . 8 1 . . . . 2 2 1 Fabricators 6 | . . . . . . . . . . . . . . . . . . . . 6 . Repair Stations 2 | . . . . . . 2 . . . . . . . . . . . . . . . Recycling Units 3 | . 1 . . . . . . . . . . . 2 . . . . . . . . Scanalyzers 1 | . . . . . 1 . . . . . . . . . . . . . . . . Garrison Access 3 | . . . . . . 1 . . . . . . . . . . . . 1 . 1 Terminal Hacks 50 | . 6 1 . . 1 . 2 . 2 . 30 . 4 1 . 1 . . . 1 1 Record 14 | . . . . . . . . . 2 . 11 . . . . . . . . 1 . Part Schematic 11 | . . . . . . . . . . . 11 . . . . . . . . . . Robot Schematic 5 | . . . . . . . . . . . 5 . . . . . . . . . . Robot Analysis 1 | . 1 . . . . . . . . . . . . . . . . . . . . Prototype ID Bank 7 | . 2 . . . 1 . . . . . 3 . 1 . . . . . . . . Open Door 2 | . . 1 . . . . . . . . . . . . . 1 . . . . . Emergency Access Points 2 | . 1 . . . . . 1 . . . . . . . . . . . . . . Locate Traps 1 | . . . . . . . . . . . . . 1 . . . . . . . . Reprogram Traps 1 | . . . . . . . . . . . . . . 1 . . . . . . . Dispatch Records 1 | . 1 . . . . . . . . . . . . . . . . . . . . Hauler Manifests 1 | . 1 . . . . . . . . . . . . . . . . . . . . Registered Components 1 | . . . . . . . . . . . . . 1 . . . . . . . . Zone Layout 2 | . . . . . . . . . . . . . 1 . . . . . . . 1 Security Stations 1 | . . . . . . . 1 . . . . . . . . . . . . . . Fabricator Hacks 1 | . . . . . . . . . . . . . . . . . . . . 1 . Build 1 | . . . . . . . . . . . . . . . . . . . . 1 . Repair Station Hacks . | . . . . . . . . . . . . . . . . . . . . . . Recycling Unit Hacks . | . . . . . . . . . . . . . . . . . . . . . . Scanalyzer . | . . . . . . . . . . . . . . . . . . . . . . Garrison Access Hacks 3 | . . . . . . 1 . . . . . . . . . . . . 1 . 1 Unlock Access 1 | . . . . . . 1 . . . . . . . . . . . . . . . Seal Access 2 | . . . . . . . . . . . . . . . . . . . 1 . 1 Unauthorized Hacks 2 | . 1 . . . . . . . . . . . 1 . . . . . . . . Terminals . | . . . . . . . . . . . . . . . . . . . . . . Fabricators . | . . . . . . . . . . . . . . . . . . . . . . Repair Stations . | . . . . . . . . . . . . . . . . . . . . . . Recycling Units 2 | . 1 . . . . . . . . . . . 1 . . . . . . . . Monitor 1 | . 1 . . . . . . . . . . . . . . . . . . . . Reject 1 | . . . . . . . . . . . . . 1 . . . . . . . . Scanalyzers . | . . . . . . . . . . . . . . . . . . . . . . Garrison Access . | . . . . . . . . . . . . . . . . . . . . . . Data Cores Recovered 2 | . . . . . 1 . . . . . . . 1 . . . . . . . . Used . | . . . . . . . . . . . . . . . . . . . . . . Hacking Detections 14 | . 3 . . . 1 2 2 . 1 . . . 2 . . . . . 1 2 . Full Trace Events 1 | . . . . . . . 1 . . . . . . . . . . . . . . Feedback Events . | . . . . . . . . . . . . . . . . . . . . . . Feedback Blocked . | . . . . . . . . . . . . . . . . . . . . . . Robot Schematics Acquired 5 | . . . . . . . . . . . 5 . . . . . . . . . . Robots Built 1 | . . . . . . . . . . . . . . . . . . . . 1 . Authchips . | . . . . . . . . . . . . . . . . . . . . . . Time 81 | . . . . . . . . . . . . . . . . . . . . 81 . Total Robot Build Rating 1 | . . . . . . . . . . . . . . . . . . . . 1 . Part Schematics Acquired 11 | . . . . . . . . . . . 11 . . . . . . . . . . Parts Built . | . . . . . . . . . . . . . . . . . . . . . . Authchips . | . . . . . . . . . . . . . . . . . . . . . . Time . | . . . . . . . . . . . . . . . . . . . . . . Total Part Build Rating . | . . . . . . . . . . . . . . . . . . . . . . Parts Repaired . | . . . . . . . . . . . . . . . . . . . . . . Time . | . . . . . . . . . . . . . . . . . . . . . . Parts Recycled . | . . . . . . . . . . . . . . . . . . . . . . Recycled Matter . | . . . . . . . . . . . . . . . . . . . . . . Retrieved Matter . | . . . . . . . . . . . . . . . . . . . . . . Retrieved Components . | . . . . . . . . . . . . . . . . . . . . . . Parts Scanalyzed . | . . . . . . . . . . . . . . . . . . . . . . Part Schematics Acquired . | . . . . . . . . . . . . . . . . . . . . . . Parts Damaged . | . . . . . . . . . . . . . . . . . . . . . . Bothacking | -11 -10 -10 -10 -9 -8 -7 -7 -6 -6 -6 -6 -5 -5 -4 -4 -4 -4 -3 -3 -2 -1 ------------ Run | Jun Mat Min Exi Min Mat Fac Gar Fac Low Low Dat Pro Fac Fac Upp Upp War Pro Res Res Acc Used RIF Installer 1 | . . . . . . . 1 . . . . . . . . . . . . . . Robots Hacked 1 | . . . . . . . . 1 . . . . . . . . . . . . . Non-combat 1 | . . . . . . . . 1 . . . . . . . . . . . . . Combat . | . . . . . . . . . . . . . . . . . . . . . . Robot Hacks Applied 1 | . . . . . . . . 1 . . . . . . . . . . . . . start_evac 1 | . . . . . . . . 1 . . . . . . . . . . . . . Relay Couplers Released 17 | . . . . . 1 . 15 . . . . . 1 . . . . . . . . Machine Destruction 14 | . . . . . 1 . 12 . . . . . 1 . . . . . . . . Programmers 3 | . . . . . . . 3 . . . . . . . . . . . . . . Attached 4 | . . . . . . . 3 1 . . . . . . . . . . . . . Fabnet Peak Effective % . | . . . . . . . . . . . . . . . . . . . . . . Robots Rewired 5 | . . . . . . . 3 . . 2 . . . . . . . . . . . Allies Hacked . | . . . . . . . . . . . . . . . . . . . . . . Hacks Repelled . | . . . . . . . . . . . . . . . . . . . . . . Allies | -11 -10 -10 -10 -9 -8 -7 -7 -6 -6 -6 -6 -5 -5 -4 -4 -4 -4 -3 -3 -2 -1 -------- Run | Jun Mat Min Exi Min Mat Fac Gar Fac Low Low Dat Pro Fac Fac Upp Upp War Pro Res Res Acc Total Allies 9 | . . . . . . . 5 . . 2 . 1 . . . . . . . 1 . Largest Group 3 | . . . . . . . 3 3 . 2 . 1 . . . . . . . 1 . Highest-Rated Group 96 | . . . . . . . 96 96 . 62 . 96 . . . . . . . 6 . Highest-Rated Ally 96 | . . . . . . . 32 32 . 31 . 96 . . . . . . . 6 . Total Orders 6 | . . 2 . . . . 4 . . . . . . . . . . . . . . EXPLORE 2 | . . 1 . . . . 1 . . . . . . . . . . . . . . RETURN 4 | . . 1 . . . . 3 . . . . . . . . . . . . . . Ally Attacks 55 | . . . . . . . 5 12 . 11 . 27 . . . . . . . . . Total Damage 1495 | . . . . . . . 19 473 . 84 . 919 . . . . . . . . . Kills 7 | . . . . . . . . 3 . 1 . 3 . . . . . . . . . Allies Corrupted . | . . . . . . . . . . . . . . . . . . . . . . Allies Melted . | . . . . . . . . . . . . . . . . . . . . . . Intel | -11 -10 -10 -10 -9 -8 -7 -7 -6 -6 -6 -6 -5 -5 -4 -4 -4 -4 -3 -3 -2 -1 ------- Run | Jun Mat Min Exi Min Mat Fac Gar Fac Low Low Dat Pro Fac Fac Upp Upp War Pro Res Res Acc Robot Analysis Total 1 | . 1 . . . . . . . . . . . . . . . . . . . . Derelict Logs Recovered 6 | . . 1 . 1 . . . . 1 1 . 1 . . . 1 . . . . . Drone Launches 7 | . . 1 . . . . 6 . . . . . . . . . . . . . . Drone Recoveries 7 | . . 1 . . . . 6 . . . . . . . . . . . . . . Exploration | -11 -10 -10 -10 -9 -8 -7 -7 -6 -6 -6 -6 -5 -5 -4 -4 -4 -4 -3 -3 -2 -1 ------------- Run | Jun Mat Min Exi Min Mat Fac Gar Fac Low Low Dat Pro Fac Fac Upp Upp War Pro Res Res Acc Turns Passed 22901 | 58 495 554 563 201 1204 95 4472 483 2476 2247 169 1250 2629 755 713 1837 418 745 635 641 261 Spaces Moved 9458 | 49 328 401 511 185 738 77 1803 212 373 403 89 234 1073 301 305 424 162 317 380 731 362 Core 457 | 12 . . . . . . 21 . . . . . . . . . . . . 142 282 Treads 983 | . . . . . . . 954 . . . . . . . . . . . 29 . . Legs 3327 | . . . . . . . 776 212 373 403 89 234 976 54 . . . . 13 197 . Wheels 4210 | 37 328 401 511 185 738 77 43 . . . . . 97 247 305 424 162 317 338 . . Hover 89 | . . . . . . . 9 . . . . . . . . . . . . . 80 Flight 392 | . . . . . . . . . . . . . . . . . . . . 392 . Fastest Speed 45 | 50 80 105 105 105 105 108 108 120 190 190 190 120 105 102 115 115 115 115 90 45 45 Average Speed 137 | 87 97 111 108 105 107 108 201 181 190 190 190 188 145 132 115 115 115 117 123 60 49 Slowest Speed 1200 | 100 110 140 120 105 130 108 1200 190 190 190 190 190 190 185 115 115 115 130 145 105 60 Overloaded Moves . | . . . . . . . . . . . . . . . . . . . . . . Propulsion Burnouts . | . . . . . . . . . . . . . . . . . . . . . . Robots Hopped 8 | . . . . . . . . . . . . . . . . . . . . 8 . Cave-ins Triggered . | . . . . . . . . . . . . . . . . . . . . . . Exploration Rate (%) 42 | 4 61 77 81 56 47 2 89 4 51 52 78 46 31 7 57 57 24 54 12 31 14 Regions Visited 21 Branch Regions 11 Pre-discovered Areas 3 | . . . . 1 . . . . . . 1 1 . . . . . . . . . Known Exits Taken 3 | . . . . . 1 1 . . . . . . . . . . . 1 . . . Unknown Exits Taken 17 | 1 1 1 1 1 . . . 1 1 1 1 1 1 1 1 1 1 . 1 1 . Scrap Searched 14 | . . 1 . 1 . . . . 5 2 . . . . 2 1 . 2 . . . Spaces Dug 68 | . 9 . . . . . 42 . . . . . . . . . . 17 . . . Terrain Destroyed 1165 | . 15 28 . . 338 . 225 . 21 133 . 57 69 40 21 15 . 90 110 3 . Melee . | . . . . . . . . . . . . . . . . . . . . . . Projectile 30 | . . 1 . . 15 . 3 . . . . . 8 . . . . . . 3 . AOE 1134 | . 15 27 . . 323 . 222 . 21 133 . 57 60 40 21 15 . 90 110 . . Terrain Rammed . | . . . . . . . . . . . . . . . . . . . . . . Walls Destroyed . | . . . . . . . . . . . . . . . . . . . . . . Machines Disabled . | . . . . . . . . . . . . . . . . . . . . . . Actions | -11 -10 -10 -10 -9 -8 -7 -7 -6 -6 -6 -6 -5 -5 -4 -4 -4 -4 -3 -3 -2 -1 --------- Run | Jun Mat Min Exi Min Mat Fac Gar Fac Low Low Dat Pro Fac Fac Upp Upp War Pro Res Res Acc Total 18458 | 63 436 474 520 192 1087 88 2369 306 2137 1859 89 1012 1913 605 662 1775 393 669 504 878 427 Wait 7860 | . 43 30 . 4 267 4 247 66 1760 1409 . 740 615 231 352 1340 232 328 61 95 36 Move 9420 | 48 327 400 510 184 737 76 1801 211 372 402 88 233 1072 300 304 423 161 316 379 714 362 Hop 8 | . . . . . . . . . . . . . . . . . . . . 8 . Pick Up 172 | 9 13 8 1 1 9 4 33 3 1 9 . 6 36 17 . 3 . 2 10 7 . Fast Attach 47 | . 2 1 2 . . . 5 1 . 1 . . 3 3 3 . . 2 9 7 8 Attach 128 | 6 1 . . 2 11 2 30 6 . 7 . 3 29 11 . . . 3 5 8 4 Detach 18 | . . . . . 2 . 4 4 . . . 2 2 . . . . . 1 2 1 Swap 100 | . 9 13 1 . 2 1 15 3 1 3 1 8 19 7 2 4 . 7 2 2 . Drop 81 | . 4 5 4 1 . 1 12 3 1 6 . 4 12 9 . 5 . . 8 6 . Fire 490 | . 37 17 . . 59 . 115 8 2 17 . 16 124 27 1 . . 11 27 20 9 Melee 76 | . . . . . . . 75 1 . . . . . . . . . . . . . Ram 17 | . . . . . . . . . . . . . . . . . . . 1 9 7 Kick 1 | . . . . . . . . . . . . . . . . . . . 1 . . Crush . | . . . . . . . . . . . . . . . . . . . . . . Escape Stasis 8 | . . . . . . . 8 . . . . . . . . . . . . . . Rewire 8 | . . . 2 . . . 1 . . 5 . . . . . . . . . . . Trap 24 | . . . . . . . 23 . . . . . 1 . . . . . . . . Miscellaneous . | . . . . . . . . . . . . . . . . . . . . . . Route ------- -11/Junkyard -10/Materials (discovered 2 exits: *Min x2) -10/Mines -10/Exiles -9/Mines -8/Materials -7/Factory -7/Garrison (discovered 3 exits: [*Fac x3]) -6/Factory -6/Lower Caves -6/Lower Caves -6/Data Miner -5/Proximity Caves -5/Factory (discovered 2 exits: *Fac x2) -4/Factory -4/Upper Caves -4/Upper Caves -4/Warlord -3/Proximity Caves -3/Research -2/Research -1/Access History --------- Turn | Location | Event 5 | -11/Junkyard | Discovered new exit (range 15) 59 | -11/Junkyard | Entered Materials 92 | -10/Materials | Discovered new exit (range 5) 314 | -10/Materials | Build established: Mutant 509 | -10/Materials | Discovered new exit (range 15) 554 | -10/Materials | Entered Mines 555 | -10/Mines | Assembled infested the area 590 | -10/Mines | A weapon hastily lodged in a ceiling crevice suddenly fell to the ground 633 | -10/Mines | Found the Drone Emporium 640 | -10/Mines | Found Prototype Device 641 | -10/Mines | Identified Splice Drone Bay 800 | -10/Mines | Received a Rocket Launcher from a helpful Derelict 1039 | -10/Mines | Learned Materials emergency access door positions 1055 | -10/Mines | Deemed a non-threat by the Exiles lab entrance 1055 | -10/Mines | Discovered new exit (range 5) 1080 | -10/Mines | Build established: Scavenger-Mutant 1108 | -10/Mines | Entered Exiles 1135 | -10/Exiles | Met 8R-AWN 1150 | -10/Exiles | Met EX-HEX 1298 | -10/Exiles | Met EX-DEC 1319 | -10/Exiles | Visited The Gauntlet 1471 | -10/Exiles | Met EX-BIN 1488 | -10/Exiles | Aligned with FarCom system 1489 | -10/Exiles | Given EX-Vault access code 1515 | -10/Exiles | Opened EX-Vault 1525 | -10/Exiles | Found Prototype Slashing Weapon 1525 | -10/Exiles | Identified Longsword +1 1529 | -10/Exiles | Found Prototype Energy Cannon 1529 | -10/Exiles | Identified Firepult 1560 | -10/Exiles | Warned to stay clear of 0b10 Research branches 1656 | -10/Exiles | Discovered new exit (range 14) 1671 | -10/Exiles | Stole two prototypes: Firepult, Longsword +1 1671 | -10/Exiles | Entered Mines 1688 | -9/Mines | Met a Derelict bent on vengeance 1856 | -9/Mines | Discovered new exit (range 15) 1862 | -9/Mines | Learned location of Storage (-7) 1872 | -9/Mines | Entered Materials 1872 | -8/Materials | Evolved 4 slots: Propulsion x2, Utility x2 1873 | -8/Materials | Identified exit to Factory 2156 | -8/Materials | Lost 3 parts (2n1u) 3072 | -8/Materials | First assault squad dispatched 3076 | -8/Materials | Entered Factory 3076 | -7/Factory | Evolved 2 slots: Utility x2 3078 | -7/Factory | FarCom data flow suspended 3166 | -7/Factory | Identified exit to Garrison 3171 | -7/Factory | Entered Garrison 3298 | -7/Garrison | Triggered checkpoint 3341 | -7/Garrison | Destroyed 9 combat bots 3348 | -7/Garrison | Lost 9 parts (3n4u2w) 3418 | -7/Garrison | Lost 5 parts (1p1n1u2w) 3560 | -7/Garrison | Triggered checkpoint 3617 | -7/Garrison | Triggered checkpoint 3626 | -7/Garrison | Build established: Mutant 3655 | -7/Garrison | Core integrity fell below 50% 3932 | -7/Garrison | Discovered new exit (range 10) 3992 | -7/Garrison | Triggered checkpoint 4110 | -7/Garrison | Triggered checkpoint 4360 | -7/Garrison | Triggered checkpoint 4697 | -7/Garrison | Triggered checkpoint 4764 | -7/Garrison | Lost 3 parts (1p1u1w) 4782 | -7/Garrison | Discovered new exit (range 14) 5188 | -7/Garrison | Discovered new exit (range 12) 5318 | -7/Garrison | Triggered checkpoint 5512 | -7/Garrison | Triggered checkpoint 5670 | -7/Garrison | Triggered checkpoint 5771 | -7/Garrison | System corruption reached 10% 6200 | -7/Garrison | Core integrity fell below 20% 6325 | -7/Garrison | Build established: Scavenger-Mutant 6943 | -7/Garrison | Installed Relay Interface Framework 7271 | -7/Garrison | Garrison Relay disabled 7353 | -7/Garrison | Learned Factory security intel 7409 | -7/Garrison | Garrison Relay disabled 7547 | -7/Garrison | Garrison Relay disabled 7643 | -7/Garrison | Entered Factory 7643 | -6/Factory | Accompanied by 3 allies 7643 | -6/Factory | Evolved 2 slots: Power x1, Utility x1 7993 | -6/Factory | First assault squad dispatched 8088 | -6/Factory | Discovered new exit (range 15) 8126 | -6/Factory | Entered Lower Caves 8131 | -6/Lower Caves | Encountered a Warlord checkpoint 8899 | -6/Lower Caves | Learned Factory non-interactive machine intel 10364 | -6/Lower Caves | Discovered new exit (range 15) 10602 | -6/Lower Caves | Entered another Lower Caves area 12049 | -6/Lower Caves | Attacked by a faux Warlord 12647 | -6/Lower Caves | Discovered new exit (range 17) 12749 | -6/Lower Caves | Spotted 5H-YNJ(f) 12751 | -6/Lower Caves | Encountered a Master Thief 12752 | -6/Lower Caves | Longsword +1 stolen by Master Thief 12752 | -6/Lower Caves | Spotted UI-LZO(f) 12752 | -6/Lower Caves | Spotted TA-SVG(f) 12753 | -6/Lower Caves | Encountered a Master Thief 12753 | -6/Lower Caves | Encountered a Master Thief 12754 | -6/Lower Caves | Lrn. Terrain Scanner stolen by Master Thief 12756 | -6/Lower Caves | Destroyed UI-LZO(f) 12763 | -6/Lower Caves | Destroyed TA-SVG(f) 12794 | -6/Lower Caves | Lost 3 parts (1n1u1w) 12842 | -6/Lower Caves | Learned Factory stockpile data 12849 | -6/Lower Caves | Entered Data Miner 12849 | -6/Data Miner | Discovered new exit (range 6) 12874 | -6/Data Miner | Met Data Miner 12925 | -6/Data Miner | Learned location of Section 7 (-2) 12925 | -6/Data Miner | Acquired the access code to Warlord's prototype stash 12958 | -6/Data Miner | Received God Mode back door access code from Data Miner 13018 | -6/Data Miner | Entered Proximity Caves 13018 | -5/Proximity Caves | Spotted B-75 Beast 13074 | -5/Proximity Caves | Build established: Scavenger-Skirmisher 13221 | -5/Proximity Caves | Attracted the attention of an 0b10 checkpoint 13222 | -5/Proximity Caves | Escorted by Enhanced Grunt 13401 | -5/Proximity Caves | Learned location of Warlord (-4) 14228 | -5/Proximity Caves | Discovered new exit (range 19) 14262 | -5/Proximity Caves | System corruption reached 10% 14268 | -5/Proximity Caves | Entered Factory 14268 | -5/Factory | Evolved 2 slots: Propulsion x1, Utility x1 14270 | -5/Factory | Loaded intel: 230 non-interactive machine locations 14927 | -5/Factory | Lost 4 parts (3n1u) 15115 | -5/Factory | Lost 3 parts (2u1w) 15185 | -5/Factory | Build established: Scavenger-Mutant 15788 | -5/Factory | Garrison activated, responded to threat 15872 | -5/Factory | Lost 14 parts (4p6n3u1w) 15946 | -5/Factory | Core integrity fell below 50% 16269 | -5/Factory | Cargo convoy interrupted 16285 | -5/Factory | Incoming assault squad redirected 16296 | -5/Factory | Incoming assault squad redirected 16597 | -5/Factory | Discovered new exit (range 21) 16895 | -5/Factory | Discovered new exit (range 3) 16897 | -5/Factory | Entered another Factory area 16897 | -4/Factory | Evolved 2 slots: Utility x2 16925 | -4/Factory | Lost 5 parts (2p1n2u) 17404 | -4/Factory | Lost 4 parts (2n2u) 17608 | -4/Factory | Discovered new exit (range 6) 17652 | -4/Factory | Entered Upper Caves 17950 | -4/Upper Caves | Build established: Scavenger-Skirmisher 18268 | -4/Upper Caves | Build established: Scavenger-Mutant 18330 | -4/Upper Caves | Discovered new exit (range 18) 18365 | -4/Upper Caves | Entered another Upper Caves area 18407 | -4/Upper Caves | Learned Research terminal intel 19785 | -4/Upper Caves | Build established: Scavenger-Skirmisher 20188 | -4/Upper Caves | Discovered new exit (range 13) 20202 | -4/Upper Caves | Entered Warlord 20279 | -4/Warlord | Discovered new exit (range 15) 20542 | -4/Warlord | System corruption cleaned by Quarantine Array 20547 | -4/Warlord | RIF detected upon attempting to enter Warlord's base 20547 | -4/Warlord | Attacked by Warlord forces 20564 | -4/Warlord | Spotted M6-KCQ(B) 20564 | -4/Warlord | Spotted T6-CIG(B) 20596 | -4/Warlord | Lost 3 parts (1p2n) 20620 | -4/Warlord | Entered Proximity Caves 20915 | -3/Proximity Caves | Build established: Scavenger-Mutant 21345 | -3/Proximity Caves | Discovered new exit (range 14) 21365 | -3/Proximity Caves | Identified exit to Research 21365 | -3/Proximity Caves | Entered Research 21365 | -3/Research | Evolved 2 slots: Propulsion x1, Weapon x1 21366 | -3/Research | Loaded intel: 24 terminal locations 21783 | -3/Research | Found Fusion Bomb Launcher 21829 | -3/Research | Lost 4 parts (1p1n1u1w) 21982 | -3/Research | Discovered new exit (range 11) 22000 | -3/Research | Entered another Research area 22000 | -2/Research | Evolved 2 slots: Power x1, Propulsion x1 22163 | -2/Research | Spotted B-90 Cyclops 22409 | -2/Research | Lost 9 parts (2p5n2u) 22459 | -2/Research | Spotted B-90 Cyclops 22541 | -2/Research | Spotted B-90 Cyclops 22564 | -2/Research | Lost 3 parts (1p2u) 22577 | -2/Research | Core integrity fell below 50% 22581 | -2/Research | Fabricated K-01 Serf? 22611 | -2/Research | System corruption reached 10% 22613 | -2/Research | Core integrity fell below 20% 22638 | -2/Research | Discovered new exit (range 7) 22641 | -2/Research | Entered Access 22641 | -1/Access | Evolved 2 slots: Utility x2 22711 | -1/Access | Build established: Mutant 22863 | -1/Access | Spotted B-99 Colossus 22883 | -1/Access | Core integrity fell below 50% 22894 | -1/Access | Core integrity fell below 20% 22902 | -1/Access | Destroyed by G-73 Enforcer with Phase Gun Last Messages --------------- 22865_ K-01 Serf collects debris. 22869_ Penetrated by Slug. 22871_ K-01 Serf collects debris. 22874_ Slug penetrates Wall. 22874_ Cmb. Linear Gravjet destroyed. 22874_ Slug penetrates Wall. 22874_ Penetrated by Slug. 22874_ Phase Gun destroyed. 22874_ Penetrated by Slug. 22874_ Slug penetrates Wall. 22877_ Quantum Reactor destroyed. 22878_ Cmb. Linear Gravjet destroyed. 22884_ Connecting with Terminal... >>Layout(Zone) Retrieving Zone 6E layout... Downloaded map data. 22885_ Cmb. Linear Gravjet destroyed. 22886_ Enh. Optical Array destroyed. 22897_ S-43 Plague destroyed. [Achievement: 20k Club] Map ----- +----------------------------------------------------+ | ???# #######??????????????? | | ???# ##???????????????????? | | ???# #???????????????????? | | ???# ######??????????????? | | ???# # ??????????????? | | ???#### # ??????????????? | | ####### # ??????????????? | | # # # ??????????????? | | # # # ??????????????? | | # + # ??????????????? | | # # %[ # ??????????????? | | ####### = g # ??????????????? | | ?????# spsgg # ??????????????? | | ?????# ss ##+###??????????????? | | ?????#ss ###????????????? | | ?????# s ????????????? | | ?##### ????????????? | | ?# ?????????????? | | ?# ^ ##?????????????? | | ?# #??????????????? | | ?# ! = #??????????????? | | ?# #??????????????? | | ?# #??????????????? | | ?# /// #??????????????? | | ?# //= #??????????????? | | ?# @ //= #??????????????? | | ?###+############ #??????????????? | | # #?????????????????????? | | # #?????????????????????? | | # #?????????????????????? | | # #?????????????????????? | | # #?????????????????????? | | ##############?????????????????????? | | ???????????????????????????????????? | | ???????????????????????????????????? | | ???????????????????????????????????? | | ???????????????????????????????????? | | ???????????????????????????????????? | | ???????????????????????????????????? | | ???????????????????????????????????? | | ???????????????????????????????????? | | ???????????????????????????????????? | | ???????????????????????????????????? | | ???????????????????????????????????? | | ???????????????????????????????????? | | ???????????????????????????????????? | | ???????????????????????????????????? | | ???????????????????????????????????? | | ???????????????????????????????????? | | ???????????????????????????????????? | +----------------------------------------------------+ Best States ------------- Heat Dissipation 113 Energy Generation 45 Energy Capacity 750 Matter Stores 450 Matter Capacity 450 Sight Range 22 Terrain Scan Range 24 Terrain Scan Density 210 ECM Strength 2 Additional Mass Support 6 Base Temperature (-) 200 Armor Coverage 600 Evasion (%) 61 Targeting Accuracy 8 Target Analysis 8 Recoil Reduction 4 Particle Charging 25 Relay Coupler Types 2 Relay Coupler Value 57 Item Schematics ----------------- Combat Drone Bay | -6/Data Miner | Free Lgt. Regenerative Plating | -6/Data Miner | Free Cld. Gravmag System | -6/Data Miner | Free Hvy. Proton Cannon | -6/Data Miner | Free Imp. Antigrav System | -6/Data Miner | Free Prc. Energy Filter | -6/Data Miner | Free Adv. Concussive RPG | -6/Data Miner | Free Quantum Capacitor | -6/Data Miner | Free Hvy. Gauss Cannon | -6/Data Miner | Free Force Lance | -6/Data Miner | Free Lgt. Particle Reactor | -6/Data Miner | Free Robot Schematics ------------------ S-27 Virus | -6/Data Miner | Free Y-54 Guardian | -6/Data Miner | Free B-60 Warrior | -6/Data Miner | Free E-15 Imp | -6/Data Miner | Free A-27 Freighter | -6/Data Miner | Free Fabricated ------------ K-01 Serf | x1 | -2/Research | Preloaded Alien Tech Used ----------------- None Achievements -------------- 20k Club Hehehe Challenges ------------ None Game ------ Seed GuidedSpreadTorch Manual? 0 Play Time 03:12:36 Cumulative 72.1 hours Start 2023.04.04 @ 12:32:01 End 2023.04.04 @ 17:21:34 Sessions 3 Manual Loads 0 Difficulty Rogue Special Mode None Game No. 89 Rogue 89 Adventurer 0 Explorer 0 Win Type - Total 0 Types 0/0/0/0/0/0/0/0/0 Lore% 46 Gallery% 45 Achievement% 39 Wizard Run 0 Options --------- ASCII 0 Keyboard 0 Movement Mouse Keybinds 0 Fullscreen 1 Font 12/Smallcaps Map View 83x54 Tactical HUD 1 Map Filters NONE Filters NONE Steam 1 RUN: 9c3131a8-6aa2-4420-8822-b67d6e2b9dc4